fUSD/lending_fUSD_20260620
["ID","MTS","AMOUNT","RATE_DAILY","PERIOD"]
[425791032,1781891466000,-500.0,0.00036273,30]
[425791072,1781891466000,-500.0,0.00036273,30]
[425791073,1781891466000,-500.0,0.00036273,30]
[425791079,1781891466000,-500.0,0.00036273,30]
[425791070,1781891466000,-500.0,0.00036273,30]
[425791078,1781891466000,-500.0,0.00036273,30]
[425791071,1781891466000,-500.0,0.00036273,30]
[425791075,1781891466000,-500.0,0.00036273,30]
[425791074,1781891466000,-600.67,0.00036273,30]
[425791080,1781891466000,-500.0,0.00036273,30]
[425791081,1781891466000,-500.0,0.00036273,30]
[425791084,1781891466000,-500.0,0.00036273,30]
[425791082,1781891466000,-500.0,0.00036273,30]
[425791089,1781891466000,-500.0,0.00036273,30]
[425791087,1781891466000,-179.68,0.00036273,30]
[425791085,1781891466000,-500.0,0.00036273,30]
[425791083,1781891466000,-1623.56,0.00036273,30]
[425791088,1781891466000,-668.69,0.00036273,30]
[425791086,1781891466000,-500.0,0.00036273,30]
[425791090,1781891466000,-500.0,0.00036273,30]
[425791092,1781891466000,-500.0,0.00036273,30]
[425791091,1781891466000,-500.0,0.00036273,30]
[425791095,1781891466000,-500.0,0.00036273,30]
[425791093,1781891466000,-500.0,0.00036273,30]
[425791094,1781891466000,-881.84,0.00036273,30]
[425791096,1781891466000,-500.0,0.00036273,30]
[425791037,1781891466000,-500.0,0.00036273,30]
[425791097,1781891466000,-769.93,0.00036273,30]
[425791076,1781891466000,-500.0,0.00036273,30]
[425791077,1781891466000,-500.0,0.00036273,30]
[425791098,1781891466000,-500.0,0.00036273,120]
[425791069,1781891466000,-500.0,0.00036273,30]
[425791068,1781891466000,-500.0,0.00036273,30]
[425791035,1781891466000,-500.0,0.00036273,30]
[425791033,1781891466000,-1376.44,0.00036273,30]
[425791044,1781891466000,-500.0,0.00036273,30]
[425791055,1781891466000,-411.07811393,0.00036273,30]
[425791054,1781891466000,-307.21692474,0.00036273,30]
[425791046,1781891466000,-612.99,0.00036273,30]
[425791045,1781891466000,-1476.34,0.00036273,30]
[425791047,1781891466000,-500.0,0.00036273,30]
[425791043,1781891466000,-500.0,0.00036273,30]
[425791048,1781891466000,-500.0,0.00036273,30]
[425791049,1781891466000,-608.96,0.00036273,30]
[425791053,1781891466000,-500.0,0.00036273,30]
[425791050,1781891466000,-1290.61,0.00036273,30]
[425791039,1781891466000,-1556.69,0.00036273,30]
[425791052,1781891466000,-185.75689794,0.00036273,30]
[425791051,1781891466000,-500.0,0.00036273,30]
[425791059,1781891466000,-500.0,0.00036273,30]
[425791061,1781891466000,-500.0,0.00036273,2]
[425791065,1781891466000,-500.0,0.00036273,30]
[425791060,1781891466000,-742.55,0.00036273,30]
[425791057,1781891466000,-500.0,0.00036273,30]
[425791062,1781891466000,-500.0,0.00036273,30]
[425791058,1781891466000,-500.0,0.00036273,30]
[425791067,1781891466000,-500.0,0.00036273,30]
[425791066,1781891466000,-500.0,0.00036273,30]
[425791064,1781891466000,-500.0,0.00036273,30]
[425791056,1781891466000,-500.0,0.00036273,30]
[425791063,1781891466000,-500.0,0.00036273,30]
[425791136,1781891467000,-702.08,0.00036273,30]
[425791135,1781891467000,-1857.03,0.00036273,30]
[425791162,1781891467000,-251.53,0.00036273,30]
[425791134,1781891467000,-500.0,0.00036273,30]
[425791129,1781891467000,-1281.25,0.00036273,30]
[425791131,1781891467000,-500.0,0.00036273,30]
[425791139,1781891467000,-500.0,0.00036273,30]
[425791138,1781891467000,-500.0,0.00036273,30]
[425791130,1781891467000,-500.0,0.00036273,30]
[425791137,1781891467000,-500.0,0.00036273,30]
[425791132,1781891467000,-1015.5,0.00036273,30]
[425791140,1781891467000,-575.54277166,0.00036273,30]
[425791144,1781891467000,-500.0,0.00036273,30]
[425791142,1781891467000,-508.47228931,0.00036273,30]
[425791143,1781891467000,-688.61,0.00036273,30]
[425791150,1781891467000,-5618.07,0.00036273,30]
[425791146,1781891467000,-500.0,0.00036273,30]
[425791141,1781891467000,-500.0,0.00036273,30]
[425791147,1781891467000,-500.0,0.00036273,30]
[425791148,1781891467000,-500.0,0.00036273,30]
[425791149,1781891467000,-560.70718586,0.00036273,30]
[425791145,1781891467000,-500.0,0.00036273,30]
[425791151,1781891467000,-464.99,0.00036273,30]
[425791153,1781891467000,-500.0,0.00036273,30]
[425791122,1781891467000,-501.82,0.00036273,30]
[425791133,1781891467000,-500.0,0.00036273,30]
[425791121,1781891467000,-325.53127905,0.00036273,30]
[425791115,1781891467000,-500.0,0.00036273,30]
[425791120,1781891467000,-500.0,0.00036273,30]
[425791100,1781891467000,-500.0,0.00036273,30]
[425791102,1781891467000,-500.0,0.00036273,14]
[425791101,1781891467000,-500.0,0.00036273,30]
[425791103,1781891467000,-747.55,0.00036273,30]
[425791104,1781891467000,-500.0,0.00036273,30]
[425791099,1781891467000,-500.0,0.00036273,30]
[425791105,1781891467000,-500.0,0.00036273,30]
[425791107,1781891467000,-550.18,0.00036273,30]
[425791109,1781891467000,-500.0,0.00036273,30]
[425791106,1781891467000,-500.0,0.00036273,30]
[425791110,1781891467000,-500.0,0.00036273,30]
[425791108,1781891467000,-1174.57,0.00036273,30]
[425791111,1781891467000,-583.29,0.00036273,30]
[425791112,1781891467000,-500.0,0.00036273,30]
[425791116,1781891467000,-500.0,0.00036273,30]
[425791114,1781891467000,-500.0,0.00036273,30]
[425791113,1781891467000,-852.54,0.00036273,30]
[425791117,1781891467000,-500.0,0.00036273,30]
[425791126,1781891467000,-500.0,0.00036273,30]
[425791127,1781891467000,-500.0,0.00036273,30]
[425791119,1781891467000,-500.0,0.00036273,30]
[425791123,1781891467000,-500.0,0.00036273,30]
[425791125,1781891467000,-500.0,0.00036273,30]
[425791118,1781891467000,-500.0,0.00036273,30]
[425791128,1781891467000,-500.0,0.00036273,30]
[425791124,1781891467000,-500.0,0.00036273,30]
[425791152,1781891467000,-901.53,0.00036273,30]
[425791173,1781891467000,-500.0,0.00036273,30]
[425791160,1781891467000,-500.0,0.00036273,30]
[425791188,1781891467000,-500.0,0.00036273,30]
[425791193,1781891467000,-188.99457629,0.00036273,30]
[425791192,1781891467000,-895.42,0.00036273,30]
[425791191,1781891467000,-500.0,0.00036273,30]
[425791190,1781891467000,-500.0,0.00036273,30]
[425791189,1781891467000,-500.0,0.00036273,30]
[425791195,1781891467000,-500.0,0.00036273,30]
[425791194,1781891467000,-500.0,0.00036273,30]
[425791200,1781891467000,-153.18303854,0.00036273,30]
[425791198,1781891467000,-500.0,0.00036273,2]
[425791199,1781891467000,-520.51,0.00036273,30]
[425791196,1781891467000,-262.73783647,0.00036273,30]
[425791202,1781891467000,-635.89,0.00036273,30]
[425791197,1781891467000,-532.19,0.00036273,30]
[425791203,1781891467000,-573.38,0.00036273,30]
[425791205,1781891467000,-500.0,0.00036273,30]
[425791201,1781891467000,-500.0,0.00036273,30]
[425791204,1781891467000,-500.0,0.00036273,30]
[425791206,1781891467000,-500.0,0.00036273,30]
[425791207,1781891467000,-181.54884377,0.00036273,30]
[425791208,1781891467000,-588.02,0.00036273,30]
[425791209,1781891467000,-500.0,0.00036273,30]
[425791211,1781891467000,-1409.41,0.00036273,30]
[425791210,1781891467000,-500.0,0.00036273,30]
[425791212,1781891467000,-500.0,0.00036273,30]
[425791187,1781891467000,-500.0,0.00036273,30]
[425791185,1781891467000,-506.13,0.00036273,30]
[425791154,1781891467000,-500.0,0.00036273,30]
[425791179,1781891467000,-510.31143025,0.00036273,30]
[425791186,1781891467000,-2321.03,0.00036273,30]
[425791156,1781891467000,-500.0,0.00036273,30]
[425791155,1781891467000,-607.6,0.00036273,30]
[425791159,1781891467000,-500.0,0.00036273,30]
[425791161,1781891467000,-802.72,0.00036273,30]
[425791157,1781891467000,-585.65486187,0.00036273,30]
[425791172,1781891467000,-980.1,0.00036273,30]
[425791164,1781891467000,-510.02458686,0.00036273,30]
[425791165,1781891467000,-500.0,0.00036273,30]
[425791163,1781891467000,-629.18,0.00036273,30]
[425791166,1781891467000,-500.0,0.00036273,30]
[425791169,1781891467000,-574.08,0.00036273,30]
[425791171,1781891467000,-500.0,0.00036273,30]
[425791158,1781891467000,-930.71,0.00036273,30]
[425791170,1781891467000,-417.93144869,0.00036273,30]
[425791168,1781891467000,-500.0,0.00036273,30]
[425791178,1781891467000,-500.0,0.00036273,30]
[425791182,1781891467000,-500.0,0.00036273,30]
[425791181,1781891467000,-500.0,0.00036273,30]
[425791180,1781891467000,-598.82,0.00036273,30]
[425791175,1781891467000,-500.0,0.00036273,30]
[425791177,1781891467000,-500.0,0.00036273,30]
[425791183,1781891467000,-500.0,0.00036273,30]
[425791184,1781891467000,-500.0,0.00036273,30]
[425791174,1781891467000,-676.16,0.00036273,30]
[425791167,1781891467000,-500.0,0.00036273,30]
[425791176,1781891467000,-695.06,0.00036273,30]
[425791221,1781891468000,-2627.54,0.00036273,30]
[425791231,1781891468000,-500.0,0.00036273,30]
[425791228,1781891468000,-500.0,0.00036273,30]
[425791227,1781891468000,-500.0,0.00036273,16]
[425791229,1781891468000,-1580.35,0.00036273,30]
[425791223,1781891468000,-500.0,0.00036273,30]
[425791222,1781891468000,-1000.0,0.00036273,30]
[425791225,1781891468000,-505.53095222,0.00036273,30]
[425791214,1781891468000,-500.0,0.00036273,30]
[425791219,1781891468000,-500.0,0.00036273,30]
[425791220,1781891468000,-300.0,0.00036273,2]
[425791224,1781891468000,-500.0,0.00036273,30]
[425791216,1781891468000,-500.0,0.00036273,30]
[425791217,1781891468000,-500.0,0.00036273,30]
[425791213,1781891468000,-305.27827804,0.00036273,30]
[425791215,1781891468000,-500.0,0.00036273,30]
[425791218,1781891468000,-498.62361149,0.00036273,30]
[425791241,1781891468000,-500.0,0.00036273,30]
[425791226,1781891468000,-176.10204185,0.00036273,30]
[425791234,1781891468000,-500.0,0.00036273,30]
[425791232,1781891468000,-500.0,0.00036273,30]
[425791235,1781891468000,-664.9,0.00036273,30]
[425791230,1781891468000,-500.0,0.00036273,30]
[425791253,1781891468000,-21268.54674827,0.000363,7]
[425791248,1781891468000,-500.0,0.00036273,30]
[425791251,1781891468000,-500.0,0.00036273,30]
[425791245,1781891468000,-500.0,0.00036273,30]
[425791247,1781891468000,-500.0,0.00036273,30]
[425791252,1781891468000,-150.0,0.00036296,120]
[425791242,1781891468000,-733.79,0.00036273,30]
[425791246,1781891468000,-8617.71,0.00036273,30]
[425791249,1781891468000,-785.95,0.00036273,30]
[425791250,1781891468000,-500.0,0.00036273,30]
[425791243,1781891468000,-2187.7,0.00036273,30]
[425791238,1781891468000,-500.0,0.00036273,30]
[425791237,1781891468000,-500.0,0.00036273,30]
[425791233,1781891468000,-500.0,0.00036273,30]
[425791240,1781891468000,-500.0,0.00036273,30]
[425791236,1781891468000,-551.25,0.00036273,2]
[425791239,1781891468000,-500.0,0.00036273,30]
[425791244,1781891468000,-500.0,0.00036273,30]
[425791257,1781891469000,-393.01,0.00028736,7]
[425791255,1781891469000,-444.0,0.00028628,30]
[425791254,1781891469000,-1693.10301393,0.0002689,2]
[425791259,1781891469000,-444.0,0.00028795,7]
[425791256,1781891469000,-393.01,0.00028709,2]
[425791258,1781891469000,-393.01,0.00028764,30]
[425791263,1781891469000,-500.0,0.00036164,30]
[425791264,1781891469000,-2.15156175,0.00036219,30]
[425791262,1781891469000,-444.0,0.00029466,2]
[425791261,1781891469000,-444.0,0.0002913,30]
[425791260,1781891469000,-444.0,0.00028963,2]
[425791265,1781891482000,1000.0,0.00029293,120]
[425791267,1781891623000,1490133.62028071,0.00015,2]
[425791268,1781891681000,9024.98130121,8e-05,2]
[425791269,1781891791000,194.041237,0.0002,120]
[425791271,1781891812000,1981811.81692792,0.00015,2]
[425791270,1781891812000,251954.68150731,0.00015,2]
[425791275,1781891877000,3472.74429564,0.00017,100]
[425791277,1781891914000,150.03,0.0002626,120]
[425791279,1781891977000,-152.0,0.00015738,7]
[425791280,1781892031000,-250.0,0.00016319,2]
[425791281,1781892084000,-500.0,0.00016319,2]
[425791282,1781892097000,271.657731,0.0002,120]
[425791283,1781892209000,250.0,0.00014,2]
[425791284,1781892413000,-300.0,0.00016,2]
[425791285,1781892466000,-150.0,0.00016159,2]
[425791297,1781892631000,-166.66,0.00016493,2]
[425791298,1781892631000,-137.34,0.00016657,2]
[425791299,1781892631000,-12.66,0.00016657,2]
[425791300,1781892631000,-225.0,0.00016822,2]
[425791302,1781892631000,-575.4789275,0.00016899,2]
[425791301,1781892631000,-166.66,0.00016841,2]
[425791304,1781892631000,-320.0,0.000169,2]
[425791305,1781892631000,-151.0,0.000169,2]
[425791306,1781892631000,-312.0,0.000169,2]
[425791308,1781892631000,-22.48139491,0.000169,2]
[425791307,1781892631000,-477.51860509,0.000169,2]
[425791303,1781892631000,-312.0,0.000169,2]
[425791311,1781892631000,-471.0344647,0.000169,2]
[425791322,1781892631000,-317.0,0.00016901,2]
[425791310,1781892631000,-102.88950578,0.000169,2]
[425791316,1781892631000,-174.22522805,0.00016901,2]
[425791317,1781892631000,-315.0,0.00016901,2]
[425791315,1781892631000,-136.77477195,0.00016901,2]
[425791319,1781892631000,-151.0,0.00016901,2]
[425791321,1781892631000,-313.0,0.00016901,2]
[425791314,1781892631000,-152.0,0.00016901,2]
[425791313,1781892631000,-214.92837539,0.00016901,2]
[425791309,1781892631000,-179.18439292,0.000169,2]
[425791312,1781892631000,-106.07162461,0.00016901,2]
[425791318,1781892631000,-314.0,0.00016901,2]
[425791352,1781892632000,-151.0,0.00016901,2]
[425791349,1781892632000,-313.0,0.00016901,2]
[425791351,1781892632000,-312.0,0.00016901,2]
[425791353,1781892632000,-150.0,0.00016902,2]
[425791354,1781892632000,-150.0,0.00016902,2]
[425791359,1781892632000,-313.0,0.00016902,2]
[425791358,1781892632000,-151.0,0.00016902,2]
[425791355,1781892632000,-318.0,0.00016902,2]
[425791356,1781892632000,-312.0,0.00016902,2]
[425791360,1781892632000,-310.0,0.00016902,2]
[425791350,1781892632000,-310.0,0.00016901,2]
[425791357,1781892632000,-316.0,0.00016902,2]
[425791347,1781892632000,-321.0,0.00016901,2]
[425791326,1781892632000,-284.90054195,0.00016901,2]
[425791346,1781892632000,-314.0,0.00016901,2]
[425791333,1781892632000,-151.0,0.00016901,2]
[425791338,1781892632000,-152.0,0.00016901,2]
[425791336,1781892632000,-310.0,0.00016901,2]
[425791334,1781892632000,-311.0,0.00016901,2]
[425791339,1781892632000,-311.0,0.00016901,2]
[425791331,1781892632000,-311.0,0.00016901,2]
[425791345,1781892632000,-152.0,0.00016901,2]
[425791343,1781892632000,-313.0,0.00016901,2]
[425791329,1781892632000,-310.0,0.00016901,2]
[425791341,1781892632000,-321.0,0.00016901,2]
[425791328,1781892632000,-28.09945805,0.00016901,2]
[425791324,1781892632000,-151.0,0.00016901,2]
[425791348,1781892632000,-150.0,0.00016901,2]
[425791362,1781892632000,-315.0,0.00016902,2]
[425791361,1781892632000,-152.0,0.00016902,2]
[425791364,1781892632000,-151.0,0.00016902,2]
[425791365,1781892632000,-317.0,0.00016902,2]
[425791392,1781892632000,-320.06,0.00017233,2]
[425791390,1781892632000,-924.43,0.00017205,2]
[425791391,1781892632000,-500.0,0.00017218,2]
[425791393,1781892632000,-4457.95292043,0.00017248,2]
[425791389,1781892632000,-1852.42,0.00017205,2]
[425791387,1781892632000,-166.66,0.00017188,2]
[425791388,1781892632000,-200.0,0.00017191,2]
[425791386,1781892632000,-425.03486074,0.00017181,2]
[425791384,1781892632000,-200.0,0.0001717,2]
[425791385,1781892632000,-2594.43,0.00017181,2]
[425791382,1781892632000,-7050.11,0.0001716,2]
[425791381,1781892632000,-500.0,0.00016944,2]
[425791376,1781892632000,-309.0,0.00016903,2]
[425791383,1781892632000,-576.07,0.00017167,2]
[425791372,1781892632000,-310.0,0.00016903,2]
[425791380,1781892632000,-160.0,0.00016923,2]
[425791378,1781892632000,-160.0,0.00016903,2]
[425791374,1781892632000,-318.0,0.00016903,2]
[425791377,1781892632000,-312.0,0.00016903,2]
[425791375,1781892632000,-151.0,0.00016903,2]
[425791373,1781892632000,-316.0,0.00016903,2]
[425791371,1781892632000,-319.0,0.00016903,2]
[425791379,1781892632000,-216.24448118,0.00016912,2]
[425791368,1781892632000,-321.0,0.00016903,2]
[425791367,1781892632000,-311.0,0.00016903,2]
[425791370,1781892632000,-152.0,0.00016903,2]
[425791369,1781892632000,-151.0,0.00016903,2]
[425791363,1781892632000,-310.0,0.00016902,2]
[425791366,1781892632000,-315.0,0.00016902,2]
[425791413,1781892637000,-1125.0,0.00017248,2]
[425791414,1781892637000,-1090.66707957,0.00017248,2]
[425791415,1781892637000,-2194.5105102,0.00017292,2]
[425791420,1781892637000,-150.03,0.00017507,2]
[425791417,1781892637000,-1000.0,0.00017471,2]
[425791418,1781892637000,-7137.44,0.00017472,2]
[425791419,1781892637000,-174.92,0.00017492,2]
[425791416,1781892637000,-200.9894898,0.00017292,2]
[425791439,1781892638000,-2401.51650709,0.0002,2]
[425791437,1781892638000,-190.0,0.0002,2]
[425791440,1781892638000,-1864.94608406,0.0002,2]
[425791438,1781892638000,-152.0,0.0002,2]
[425791436,1781892638000,-5019.45516199,0.000199,3]
[425791434,1781892638000,-500.0,0.00019241,2]
[425791435,1781892638000,-500.0,0.00019241,2]
[425791433,1781892638000,-320.06,0.00018956,2]
[425791429,1781892638000,-5957.25,0.00018356,2]
[425791426,1781892638000,-500.0,0.0001802,2]
[425791430,1781892638000,-1555.5,0.00018363,2]
[425791431,1781892638000,-320.06,0.00018525,2]
[425791428,1781892638000,-166.66,0.0001823,2]
[425791427,1781892638000,-320.06,0.00018094,2]
[425791425,1781892638000,-350.0,0.00018,2]
[425791423,1781892638000,-1500.0,0.00017815,2]
[425791424,1781892638000,-166.66,0.00017882,2]
[425791422,1781892638000,-320.06,0.00017664,2]
[425791421,1781892638000,-166.66,0.00017535,2]
[425791441,1781892638000,-941.35435899,0.0002,2]
[425791432,1781892638000,-1587.01060717,0.00018911,2]
[425791442,1781892638000,-216.07315688,0.0002,2]
[425791457,1781892638000,-394.0,0.0002,2]
[425791443,1781892638000,-376.08992892,0.0002,2]
[425791471,1781892638000,-4827.32675256,0.00021273,2]
[425791469,1781892638000,-200.0,0.00021,2]
[425791468,1781892638000,-394.0,0.00021,2]
[425791464,1781892638000,-157.60524744,0.00020284,2]
[425791465,1781892638000,-190.0,0.00021,2]
[425791461,1781892638000,-536.95,0.00020128,2]
[425791463,1781892638000,-342.75475256,0.00020284,2]
[425791467,1781892638000,-321.0,0.00021,2]
[425791459,1781892638000,-200.0,0.0002,2]
[425791466,1781892638000,-152.0,0.00021,2]
[425791470,1781892638000,-3769.12,0.00021273,2]
[425791455,1781892638000,-321.0,0.0002,2]
[425791446,1781892638000,-152.0,0.0002,2]
[425791445,1781892638000,-11840.57462677,0.0002,2]
[425791447,1781892638000,-441.87430723,0.0002,2]
[425791450,1781892638000,-1395.33024752,0.0002,2]
[425791444,1781892638000,-928.35239756,0.0002,2]
[425791449,1781892638000,-685.245737,0.0002,2]
[425791448,1781892638000,-333.47959333,0.0002,2]
[425791451,1781892638000,-257.00240966,0.0002,2]
[425791453,1781892638000,-181.105154,0.0002,2]
[425791474,1781892640000,-611.90728942,0.00021273,2]
[425791473,1781892640000,-300.0,0.00021273,2]
[425791500,1781892643000,-730.30623394,0.00021273,2]
[425791499,1781892643000,-306.57556441,0.00021273,2]
[425791505,1781892646000,-863.05149703,0.00021273,2]
[425791511,1781892728000,166.66,0.00021997,30]
[425791512,1781892856000,-151.0,0.00017191,2]
[425791513,1781893077000,-151.0,0.0001719,2]
[425791514,1781893237000,-150.0,0.0001719,2]
[425791516,1781893398000,-151.0,0.00016534,2]
[425791517,1781893470000,150.04,0.00025972,120]
[425791518,1781893505000,340.0,0.00030137,120]
[425791519,1781893559000,-166.66,0.00016346,2]
[425791520,1781893719000,-166.66,0.0001669,2]
[425791525,1781893792000,-444.31796103,0.00017059,2]
[425791524,1781893792000,-166.66,0.00017034,2]
[425791523,1781893792000,-150.0,0.00017,2]
[425791522,1781893792000,-189.07949596,0.00016968,2]
[425791521,1781893792000,-176.955829,0.00016883,2]
[425791533,1781893831000,-55.68203897,0.00017059,2]
[425791532,1781893831000,-150.0,0.00016296,2]
[425791588,1781893832000,-316.0,0.00017191,2]
[425791581,1781893832000,-319.0,0.00017191,2]
[425791579,1781893832000,-311.0,0.00017191,2]
[425791578,1781893832000,-310.0,0.00017191,2]
[425791571,1781893832000,-152.0,0.00017191,2]
[425791573,1781893832000,-153.0,0.00017191,2]
[425791585,1781893832000,-310.0,0.00017191,2]
[425791574,1781893832000,-316.0,0.00017191,2]
[425791577,1781893832000,-315.0,0.00017191,2]
[425791575,1781893832000,-314.0,0.00017191,2]
[425791580,1781893832000,-151.0,0.00017191,2]
[425791584,1781893832000,-320.0,0.00017191,2]
[425791587,1781893832000,-318.0,0.00017191,2]
[425791576,1781893832000,-151.0,0.00017191,2]
[425791582,1781893832000,-319.0,0.00017191,2]
[425791589,1781893832000,-320.0,0.00017191,2]
[425791591,1781893832000,-310.0,0.00017191,2]
[425791590,1781893832000,-151.0,0.00017191,2]
[425791593,1781893832000,-314.0,0.00017191,2]
[425791592,1781893832000,-314.0,0.00017191,2]
[425791594,1781893832000,-150.0,0.00017191,2]
[425791599,1781893832000,-151.0,0.00017191,2]
[425791597,1781893832000,-317.0,0.00017191,2]
[425791586,1781893832000,-151.0,0.00017191,2]
[425791565,1781893832000,-475.42907504,0.0001719,2]
[425791543,1781893832000,-151.0,0.0001719,2]
[425791569,1781893832000,-500.0,0.00017191,2]
[425791534,1781893832000,-184.07,0.00017059,2]
[425791536,1781893832000,-160.86,0.00017061,2]
[425791535,1781893832000,-216.24448118,0.00017059,2]
[425791537,1781893832000,-463.14347985,0.00017065,2]
[425791538,1781893832000,-18.66652015,0.00017065,2]
[425791539,1781893832000,-174.94,0.00017068,2]
[425791596,1781893832000,-150.0,0.00017191,2]
[425791540,1781893832000,-280.68335112,0.00017159,2]
[425791541,1781893832000,-150.0,0.00017169,2]
[425791542,1781893832000,-151.0,0.0001719,2]
[425791544,1781893832000,-152.0,0.0001719,2]
[425791545,1781893832000,-151.0,0.0001719,2]
[425791548,1781893832000,-151.0,0.0001719,2]
[425791557,1781893832000,-152.0,0.0001719,2]
[425791547,1781893832000,-150.0,0.0001719,2]
[425791546,1781893832000,-151.0,0.0001719,2]
[425791553,1781893832000,-150.0,0.0001719,2]
[425791555,1781893832000,-152.0,0.0001719,2]
[425791550,1781893832000,-455.0,0.0001719,2]
[425791551,1781893832000,-150.0,0.0001719,2]
[425791549,1781893832000,-150.0,0.0001719,2]
[425791552,1781893832000,-151.0,0.0001719,2]
[425791561,1781893832000,-151.0,0.0001719,2]
[425791559,1781893832000,-153.0,0.0001719,2]
[425791563,1781893832000,-151.0,0.0001719,2]
[425791567,1781893832000,-270.5240338,0.0001719,2]
[425791595,1781893832000,-321.0,0.00017191,2]
[425791583,1781893832000,-150.0,0.00017191,2]
[425791600,1781893832000,-318.0,0.00017191,2]
[425791630,1781893832000,-166.66,0.00017378,2]
[425791632,1781893832000,-549.9293641,0.00017465,2]
[425791631,1781893832000,-150.0,0.00017408,2]
[425791641,1781893832000,-300.0,0.00017926,2]
[425791640,1781893832000,-500.0,0.00017926,2]
[425791633,1781893832000,-150.0,0.000175,2]
[425791642,1781893832000,-150.0,0.00018,2]
[425791634,1781893832000,-150.0,0.00017509,2]
[425791635,1781893832000,-150.0,0.00017679,2]
[425791639,1781893832000,-151.77,0.00017917,2]
[425791637,1781893832000,-150.0,0.000178,2]
[425791626,1781893832000,-150.04,0.00017315,2]
[425791636,1781893832000,-166.66,0.00017722,2]
[425791643,1781893832000,-200.0,0.00018002,2]
[425791645,1781893832000,-166.66,0.00018067,2]
[425791644,1781893832000,-317.0,0.00018019,2]
[425791646,1781893832000,-150.0,0.000182,2]
[425791648,1781893832000,-1555.5,0.00018461,2]
[425791649,1781893832000,-150.0,0.000188,2]
[425791650,1781893832000,-1613.0535,0.00019009,2]
[425791651,1781893832000,-184.07,0.00019192,2]
[425791647,1781893832000,-232.72,0.00018402,2]
[425791652,1781893832000,-224.0,0.00019452,2]
[425791653,1781893832000,-282.0,0.00019452,2]
[425791638,1781893832000,-1500.0,0.00017913,2]
[425791629,1781893832000,-294.46406898,0.00017378,2]
[425791627,1781893832000,-150.0,0.00017339,2]
[425791622,1781893832000,-314.0,0.00017213,2]
[425791602,1781893832000,-309.0,0.00017191,2]
[425791603,1781893832000,-151.0,0.00017191,2]
[425791601,1781893832000,-315.0,0.00017191,2]
[425791604,1781893832000,-319.0,0.00017191,2]
[425791606,1781893832000,-151.0,0.00017191,2]
[425791605,1781893832000,-316.0,0.00017191,2]
[425791607,1781893832000,-316.0,0.00017191,2]
[425791608,1781893832000,-310.0,0.00017191,2]
[425791612,1781893832000,-314.0,0.00017191,2]
[425791613,1781893832000,-151.0,0.00017191,2]
[425791623,1781893832000,-312.0,0.00017213,2]
[425791611,1781893832000,-310.0,0.00017191,2]
[425791614,1781893832000,-495.28893508,0.00017191,2]
[425791609,1781893832000,-309.0,0.00017191,2]